Cogmind - Beta 11.1 @@@ ROGUE MODE // 2022.05.30 @ 10:46:54 Player: Smie Result: Destroyed by Y-64 Sentinel with KE Penetrator Performance ------------- Evolutions (4) 2000 Regions Visited (11) 2200 Robots Destroyed (58) 290 Value Destroyed (2010) 2010 Prototype IDs (31) 620 Alien Tech Used (0) 0 Bonus (1003) 1003 TOTAL SCORE: 8123 Bonus ------- High Alert Combat Kills 13 Follower Combat Kills 903 Aligned with FarCom 300 Friendly Fire -213 Cogmind --------- Core Integrity 0/850 Matter 236/300 Energy 98/100 System Corruption 7% Temperature Cool (9) Movement Core (50) Location -6/Archives Parts ------- > --- POWER (1) -------- (None) > --- PROPULSION (4) --- (None) > --- UTILITY (8) ------ Hacking Suite > --- WEAPON (2) ------- (None) > --- INVENTORY (5) ---- Quantum Reactor Centrium Medium Armor Plating Cooled Pulse Rifle Beamcaster Peak State ------------ > --- POWER ------------ Light Angular Momentum Engine > --- PROPULSION ------- Centrium Heavy Treads Carbon-fiber Leg Carbon-fiber Leg > --- UTILITY ---------- Small Storage Unit Structural Scanner Terrain Scanner Improved Core Shielding Layered Medium Armor Plating Centrium Medium Armor Plating EM Disruption Field Hacking Suite > --- WEAPON ----------- Advanced Variable Charge Gun Gauss Cannon > --- INVENTORY -------- Quantum Reactor Improved Medium Treads Centrium Heavy Treads Compact Wheel Centrium Medium Armor Plating Cooled Pulse Rifle Beamcaster [Rating: 76] Favorites ----------- Power Ion Engine Engine Ion Engine Power Core Nuclear Core Propulsion Titanium Leg Treads Light Treads Leg Titanium Leg Wheel Compact Wheel Utility Small Storage Unit Device Transmission Jammer Storage Small Storage Unit Processor Improved Signal Interpreter Hackware Hacking Suite Protection Weapon Shielding Weapon AWS/Gauss Energy Gun Improved EM Shotgun Ballistic Gun AWS/Gauss Ballistic Cannon Gauss Cannon Launcher Missile Launcher Special Weapon Plasma Cutter Build | -11 -10 -10 -10 -9 -8 -7 -7 -6 -6 -6 -6 ------- Run | Scr Mat Min Exi Min Mat Fac Sto Fac Ext Cet Arc Slots Evolved 8 | . . . . . 4 2 . 2 . . . Power . | . . . . . . . . . . . . Propulsion 2 | . . . . . 1 . . 1 . . . Utility 6 | . . . . . 3 2 . 1 . . . Weapon . | . . . . . . . . . . . . Parts Attached 90 | 6 13 . 1 1 12 3 8 22 13 11 . Power 9 | 1 2 . . . 1 . 1 2 2 . . Engine 6 | 1 2 . . . . . . 1 2 . . Core 3 | . . . . . 1 . 1 1 . . . Reactor . | . . . . . . . . . . . . Propulsion 32 | 2 5 . . 1 5 . 3 8 4 4 . Treads 5 | . . . . . . . . . 2 3 . Leg 22 | . 5 . . 1 5 . 3 6 2 . . Wheel 5 | 2 . . . . . . . 2 . 1 . Hover . | . . . . . . . . . . . . Flight . | . . . . . . . . . . . . Utility 26 | 1 1 . . . 6 3 1 6 5 3 . Device 11 | . . . . . 2 1 1 5 2 . . Storage 2 | 1 . . . . . . . 1 . . . Processor 3 | . 1 . . . 2 . . . . . . Hackware 2 | . . . . . 1 1 . . . . . Protection 8 | . . . . . 1 1 . . 3 3 . Artifact . | . . . . . . . . . . . . Weapon 23 | 2 5 . 1 . . . 3 6 2 4 . Energy Gun 10 | 1 4 . . . . . 1 3 . 1 . Energy Cannon . | . . . . . . . . . . . . Ballistic Gun 8 | 1 1 . 1 . . . 2 1 . 2 . Ballistic Cannon 2 | . . . . . . . . 1 . 1 . Launcher 2 | . . . . . . . . 1 1 . . Special Weapon 1 | . . . . . . . . . 1 . . Impact Weapon . | . . . . . . . . . . . . Slashing Weapon . | . . . . . . . . . . . . Piercing Weapon . | . . . . . . . . . . . . Special Melee Weapon . | . . . . . . . . . . . . Unidentified Prototypes 8 | . 1 . . . . . 4 . . 3 . Corrupted Parts 1 | . . . . . . . . . . 1 . System Corruption 4 | . . . . . . . . . . 4 . Parts Lost 44 | . 1 . . . 1 . 6 21 . 15 . Power 4 | . . . . . . . 1 2 . 1 . Propulsion 18 | . 1 . . . . . 2 10 . 5 . Utility 14 | . . . . . 1 . 2 6 . 5 . Weapon 8 | . . . . . . . 1 3 . 4 . Highest Loss Streak 10 | . 1 . . . 1 . 6 9 . 10 . To Critical Strikes 2 | . . . . . . . . . . 2 . Average Slot Usage (%) 84 | . 93 100 92 85 88 91 91 85 65 73 6 Engine 5 | . 14 14 14 14 7 . . . 4 5 . Core 1 | . . . . . 1 7 6 3 . . . Treads 1 | . . . . . . . . . 5 6 . Leg 21 | . 27 28 28 28 26 23 21 21 12 7 . Device 9 | . . . . . 8 7 7 21 10 11 . Storage 8 | . 14 14 14 14 9 7 7 5 6 5 . Processor 6 | . 8 14 14 14 10 7 7 4 . . . Hackware 6 | . . . . . 6 14 15 11 6 6 6 Protection 5 | . . . . . 9 15 12 . 5 18 . Energy Gun 4 | . 19 14 7 . . . . 6 . 3 . Ballistic Gun 7 | . 8 14 13 14 9 7 9 4 . 2 . Naked Turns . | . . . . . . . . . . . . Heaviest Build 47 | 12 15 15 20 20 25 33 32 28 37 47 . Greatest Support 80 | 26 26 23 23 31 43 43 52 49 45 80 3 Greatest Overweight (x) 2 | . 1 . . . . . . 1 . 2 . Average Overweight (x) . | . . . . . . . . . . . . Largest Inventory Capacity 8 | 8 8 8 8 8 8 8 8 8 8 8 5 Average Capacity 7 | 7 8 8 8 8 8 8 8 7 8 7 5 Most Carried 8 | 7 8 8 8 8 8 8 8 8 8 8 4 Average Carried 6 | 4 7 8 7 7 7 7 7 6 4 6 4 Final Capacity 8 | 8 8 8 8 8 8 8 8 8 8 5 5 Final Carried 8 | 6 8 8 8 8 8 8 8 4 8 4 4 Class Distribution -------------------- 45% | Mutant 29% | Hacker-Mutant 16% | Scavenger-Mutant 8% | Scavenger-Skirmisher Dominant Class ---------------- Mutant | -10/Materials Mutant | -10/Mines Mutant | -10/Exiles Mutant | -9/Mines Mutant | -8/Materials Hacker-Mutant | -7/Factory Hacker-Mutant | -7/Storage Hacker-Mutant | -6/Factory Scavenger-Mutant | -6/Extension Scavenger-Skirmisher | -6/Cetus Mutant | -6/Archives Resources | -11 -10 -10 -10 -9 -8 -7 -7 -6 -6 -6 -6 ----------- Run | Scr Mat Min Exi Min Mat Fac Sto Fac Ext Cet Arc Matter Collected 1480 | 213 170 . . 70 115 30 116 304 313 149 . Remotely . | . . . . . . . . . . . . Salvage Created 2411 | . 289 . . 139 440 . 296 977 121 149 . Parts 139 | . 19 . . 14 41 . 13 40 3 9 . Haulers Intercepted . | . . . . . . . . . . . . Recyclers Shooed 1 | . . . . . . . 1 . . . . Parts Field Recycled . | . . . . . . . . . . . . Retrieved Matter . | . . . . . . . . . . . . Parts Self-Destructed . | . . . . . . . . . . . . Prevented . | . . . . . . . . . . . . Kills | -11 -10 -10 -10 -9 -8 -7 -7 -6 -6 -6 -6 ------- Run | Scr Mat Min Exi Min Mat Fac Sto Fac Ext Cet Arc Combat Hostiles Destroyed 42 | . 7 . . 7 6 . 2 17 . 3 . Guns 35 | . 5 . . 7 6 . 2 14 . 1 . Cannons 2 | . . . . . . . . . . 2 . AOE 5 | . 2 . . . . . . 3 . . . Classes Destroyed 11 | . 3 . . 1 3 . 3 1 . . . Worker 3 | . . . . . . . 1 2 . . . Builder 3 | . 1 . . . 1 . . 1 . . . Recycler 5 | . . . . . . . 3 1 1 . . Operator 1 | . . . . . 1 . . . . . . Watcher 4 | . 1 . . . 3 . . . . . . Swarmer 9 | . . . . 6 . . . 3 . . . Grunt 22 | . 7 . . 1 1 . . 11 . 2 . Duelist 1 | . . . . . . . . 1 . . . Sentry 5 | . . . . . 3 . . 2 . . . Hunter 4 | . . . . . 2 . 1 . . 1 . Programmer 1 | . . . . . . . 1 . . . . Best Kill Streak 7 | . 4 . . 3 4 . 4 7 1 2 . Combat Bots Only 6 | . 3 . . 3 1 . 1 6 . 2 . Max Kills in Single Turn 3 | . 3 . . 1 1 . 1 2 1 1 . Gunslinging . | . . . . . . . . . . . . Exploded 2 | . 2 . . . . . . 1 . . . Melee . | . . . . . . . . . . . . Uniques/NPCs Destroyed . | . . . . . . . . . . . . Combat | -11 -10 -10 -10 -9 -8 -7 -7 -6 -6 -6 -6 -------- Run | Scr Mat Min Exi Min Mat Fac Sto Fac Ext Cet Arc Damage Taken 8114 | . 524 . . 139 194 . 1216 2522 5 3465 49 Core 1152 | . 63 . . 18 19 . 184 397 . 422 49 Absorbed by Shields 4 | . . . . . . . . . 4 . . Reduced by Siege Mode 9 | . . . . . . . . . . 9 . Redirected to Shielding 114 | . . . . . 15 . 36 . . 63 . Regen/Repaired (Parts) 188 | . . . . . 39 . . 149 . . . Core Remaining (%) 84 | 100 . . . 67 96 . 73 . . . . Volleys Fired 126 | . 21 . . . . . 12 68 3 22 . Largest 2 | . 2 . . . . . 2 2 1 2 . Hottest 240 | . 90 . . . . . 51 99 36 240 . Shots Fired 271 | . 30 . . 24 54 . 29 103 3 28 . Gun 244 | . 30 . . 24 54 . 29 98 . 9 . Cannon 17 | . . . . . . . . . . 17 . Launcher 10 | . . . . . . . . 5 3 2 . Special . | . . . . . . . . . . . . Kinetic 196 | . 16 . . 24 54 . 28 56 . 18 . Thermal 51 | . . . . . . . 1 42 . 8 . Explosive 10 | . . . . . . . . 5 3 2 . Electromagnetic 14 | . 14 . . . . . . . . . . Robot Hit Streak 15 | . 6 . . 9 13 . 10 15 1 8 . Robot Miss Streak 4 | . 3 . . 3 3 . 1 4 1 3 . Penetration Max 1 | . . . . . . . . 1 . . . Secondary Targets 3 | . . . . . . . . 3 . . . Max Gunslinging Chain 1 | . . . . . . . . 1 . . . Autonomous 83 | . . . . 24 54 . 5 . . . . Shots Hit Robots 185 | . 22 . . 15 35 . 24 69 1 19 . Core Hits 115 | . 15 . . 7 17 . 10 44 9 13 . Critical Kills 1 | . . . . . 1 . . . . . . Critical Parts Destroyed 1 | . . . . . 1 . . . . . . Critical Strikes 4 | . . . . . 2 . . . . 2 . Destroy 2 | . . . . . 2 . . . . . . Blast 2 | . . . . . . . . . . 2 . Melee Attacks . | . . . . . . . . . . . . Impact . | . . . . . . . . . . . . Slashing . | . . . . . . . . . . . . Piercing . | . . . . . . . . . . . . Sneak Attacks . | . . . . . . . . . . . . Combat Hostiles . | . . . . . . . . . . . . Follow-up Attacks . | . . . . . . . . . . . . Damage Inflicted 5911 | . 642 . . 462 1011 . 444 2249 466 637 . Guns 4167 | . 338 . . 432 1011 . 422 1699 . 265 . Cannons 277 | . . . . . . . . . . 277 . Explosions 1417 | . 304 . . 30 . . . 535 466 82 . Melee . | . . . . . . . . . . . . Ramming 50 | . . . . . . . 22 15 . 13 . Kinetic 3241 | . 134 . . 432 1011 . 422 938 . 304 . Thermal 1333 | . 304 . . 30 . . . 761 . 238 . Explosive 1083 | . . . . . . . . 535 466 82 . Electromagnetic 204 | . 204 . . . . . . . . . . Impact . | . . . . . . . . . . . . Slashing . | . . . . . . . . . . . . Piercing . | . . . . . . . . . . . . Highest Corruption 7 | . . . . . . . 4 1 1 7 7 Average Corruption 1 | . . . . . . . 1 1 1 1 7 Corruption Purged . | . . . . . . . . . . . . Corruption Blocked . | . . . . . . . . . . . . Effects 24 | . . . . . . . 5 11 1 6 1 Message Errors 6 | . . . . . . . 1 3 1 1 . Matter Fused 7 | . . . . . . . 2 3 . 2 . Energy Discharges 2 | . . . . . . . . 1 . 1 . Parts Rejected 3 | . . . . . . . . 1 . 2 . Data Loss (minor) 3 | . . . . . . . 1 1 . . 1 Misfires 1 | . . . . . . . 1 . . . . Alerts 1 | . . . . . . . . 1 . . . Weapon Failures 1 | . . . . . . . . 1 . . . Overload Shots 17 | . . . . . . . . 15 . 2 . Effects 1 | . . . . . . . . 1 . . . Energy Bleed 1 | . . . . . . . . 1 . . . Overflow Damage 78 | . 55 . . . . . . 23 . . . Projectiles . | . . . . . . . . . . . . Explosions 78 | . 55 . . . . . . 23 . . . Melee . | . . . . . . . . . . . . Knockbacks . | . . . . . . . . . . . . Impact . | . . . . . . . . . . . . Kinetic . | . . . . . . . . . . . . Secondary . | . . . . . . . . . . . . Self-Inflicted Damage 379 | . 300 . . 51 . . 22 . . 6 . Shots 5 | . 4 . . 1 . . . . . . . Rammed 1 | . . . . . . . . . . 1 . Targets Rammed 6 | . . . . . . . . 5 . 1 . Kicked 5 | . . . . . . . . 5 . . . Crushed . | . . . . . . . . . . . . Highest Temperature 561 | . 192 . . . . . 4 111 . 561 . Average Temperature 133 | . 68 . . . . . 2 32 . 208 . Received Heat Transfer 1659 | . 120 . . 12 36 . 276 954 . 252 9 Effects 2 | . . . . . . . . . . 2 . Shutdowns 1 | . . . . . . . . . . 1 . Energy Bleed 1 | . . . . . . . . . . 1 . Siege Activations 1 | . . . . . . . . . . 1 . Total Turns 5 | . . . . . . . . . . 5 . Longest Duration 5 | . . . . . . . . . . 5 . Robots Corrupted . | . . . . . . . . . . . . Combat Hostiles . | . . . . . . . . . . . . Parts Fried . | . . . . . . . . . . . . Impact Corruptions . | . . . . . . . . . . . . Robots Melted . | . . . . . . . . . . . . Combat Hostiles . | . . . . . . . . . . . . Parts Melted 5 | . 1 . . 2 . . . 2 . . . Heat Transferred 1814 | . 300 . . 50 . . . 1192 . 272 . Parts Sabotaged . | . . . . . . . . . . . . Parts Stolen . | . . . . . . . . . . . . Parts Stripped . | . . . . . . . . . . . . Power Chain Reactions 2 | . 2 . . . . . . . . . . Missiles Intercepted . | . . . . . . . . . . . . Alert | -11 -10 -10 -10 -9 -8 -7 -7 -6 -6 -6 -6 ------- Run | Scr Mat Min Exi Min Mat Fac Sto Fac Ext Cet Arc Peak Influence 478 | . 369 65 . 292 327 128 303 478 335 352 108 Initial 135 | . . 65 . . 113 128 57 106 135 75 93 Average 203 | . 187 65 . 142 215 128 156 264 210 239 94 Maximum Alert Level 2 | . 1 . . 1 1 . 1 2 1 1 . Low Security (%) 55 | 100 43 100 . 88 38 100 70 40 63 40 100 Level 1 42 | . 56 . . 12 61 . 29 49 36 59 . Level 2 2 | . . . . . . . . 10 . . . Level 3 . | . . . . . . . . . . . . Level 4 . | . . . . . . . . . . . . Level 5 . | . . . . . . . . . . . . High Security . | . . . . . . . . . . . . Max Security . | . . . . . . . . . . . . Squads Dispatched 14 | . 1 . . 1 . . 2 7 1 2 . Investigation 7 | . 1 . . 1 . . . 2 1 2 . Extermination 2 | . . . . . . . 1 1 . . . Reinforcement 5 | . . . . . . . 1 4 . . . Assault . | . . . . . . . . . . . . Garrison . | . . . . . . . . . . . . Intercept . | . . . . . . . . . . . . Searches Triggered . | . . . . . . . . . . . . Construction Impeded 1 | . . . . . . . . 1 . . . Haulers Reinforced . | . . . . . . . . . . . . Active Scanning Responses . | . . . . . . . . . . . . Cargo Convoy Interrupts . | . . . . . . . . . . . . Stealth | -11 -10 -10 -10 -9 -8 -7 -7 -6 -6 -6 -6 --------- Run | Scr Mat Min Exi Min Mat Fac Sto Fac Ext Cet Arc Distress Signals 11 | . 1 . . . 4 . 2 1 1 2 . Communications Jammed 96 | . . . . . . . 58 38 . . . Distress Signals 96 | . . . . . . . 58 38 . . . Times Spotted 117 | . 8 . . 11 14 . 12 40 11 20 1 Peak Tracking Total 10 | . 3 . . 3 2 . 10 9 7 8 1 Tactical Retreats 11 | . . . . 1 . . 4 6 . . . Traps | -11 -10 -10 -10 -9 -8 -7 -7 -6 -6 -6 -6 ------- Run | Scr Mat Min Exi Min Mat Fac Sto Fac Ext Cet Arc Traps Triggered 2 | . 1 . . . . . 1 . . . . Indirectly . | . . . . . . . . . . . . Trap Hack Attempts . | . . . . . . . . . . . . Triggered . | . . . . . . . . . . . . Disarmed . | . . . . . . . . . . . . Reprogrammed . | . . . . . . . . . . . . Reused . | . . . . . . . . . . . . Traps Extracted . | . . . . . . . . . . . . Installed . | . . . . . . . . . . . . Triggered . | . . . . . . . . . . . . Machines | -11 -10 -10 -10 -9 -8 -7 -7 -6 -6 -6 -6 ---------- Run | Scr Mat Min Exi Min Mat Fac Sto Fac Ext Cet Arc Machines Disabled 16 | . 3 . . 1 5 . 3 1 1 2 . Max in Single Turn 3 | . 3 . . 1 1 . 1 1 . 1 . Machines Sabotaged . | . . . . . . . . . . . . Garrisons Compromised . | . . . . . . . . . . . . Overloaded Fab Kills . | . . . . . . . . . . . . Hacking | -11 -10 -10 -10 -9 -8 -7 -7 -6 -6 -6 -6 --------- Run | Scr Mat Min Exi Min Mat Fac Sto Fac Ext Cet Arc Machines Accessed 29 | . 2 . 2 2 3 . 4 4 9 3 . Terminals 21 | . 2 . . . 1 . 4 2 9 3 . Fabricators . | . . . . . . . . . . . . Repair Stations 3 | . . . . . 1 . . 2 . . . Recycling Units . | . . . . . . . . . . . . Scanalyzers 1 | . . . . . 1 . . . . . . Garrison Access . | . . . . . . . . . . . . Total Hacks 64 | . 4 . 5 2 10 . 6 11 16 10 . Successful 43 | . 1 . 5 2 7 . 3 10 10 5 . Failed 21 | . 3 . . . 3 . 3 1 6 5 . Catastrophic 4 | . 1 . . . . . . . . 3 . Database Lockouts . | . . . . . . . . . . . . Manual 26 | . 4 . 1 . 6 . 3 6 5 1 . Terminals 48 | . 4 . . . 6 . 6 6 16 10 . Fabricators . | . . . . . . . . . . . . Repair Stations 7 | . . . . . 2 . . 5 . . . Recycling Units . | . . . . . . . . . . . . Scanalyzers 2 | . . . . . 2 . . . . . . Garrison Access . | . . . . . . . . . . . . Terminal Hacks 25 | . . . 5 2 2 . 2 2 7 5 . Record 8 | . . . 4 . . . . . . 4 . Open Door 11 | . . . . 2 . . 2 . 6 1 . Level Access Points 1 | . . . . . . . . 1 . . . Branch Access Points 3 | . . . . . 1 . . 1 1 . . Registered Components 1 | . . . . . 1 . . . . . . EX-Prototype ID Bank 1 | . . . 1 . . . . . . . . Fabricator Hacks . | . . . . . . . . . . . . Repair Station Hacks 6 | . . . . . 2 . . 4 . . . Scan Component 3 | . . . . . 1 . . 2 . . . Repair 3 | . . . . . 1 . . 2 . . . Recycling Unit Hacks . | . . . . . . . . . . . . Scanalyzer 2 | . . . . . 2 . . . . . . Insert Component 1 | . . . . . 1 . . . . . . Analyze 1 | . . . . . 1 . . . . . . Garrison Access Hacks . | . . . . . . . . . . . . Unauthorized Hacks 10 | . 1 . . . 1 . 1 4 3 . . Terminals 10 | . 1 . . . 1 . 1 4 3 . . Assimilate 2 | . . . . . . . . 2 . . . Botnet 8 | . 1 . . . 1 . 1 2 3 . . Fabricators . | . . . . . . . . . . . . Repair Stations . | . . . . . . . . . . . . Recycling Units . | . . . . . . . . . . . . Scanalyzers . | . . . . . . . . . . . . Garrison Access . | . . . . . . . . . . . . Data Cores Recovered 1 | . . . . . 1 . . . . . . Used . | . . . . . . . . . . . . Hacking Detections 13 | . 2 . . . 1 . 1 2 4 3 . Full Trace Events 5 | . . . . . . . . 2 1 2 . Feedback Events 1 | . . . . . . . . 1 . . . Corruption 1 | . . . . . . . . 1 . . . Feedback Blocked . | . . . . . . . . . . . . Robot Schematics Acquired . | . . . . . . . . . . . . Robots Built . | . . . . . . . . . . . . Authchips . | . . . . . . . . . . . . Time . | . . . . . . . . . . . . Total Robot Build Rating . | . . . . . . . . . . . . Part Schematics Acquired 1 | . . . . . 1 . . . . . . Parts Built . | . . . . . . . . . . . . Authchips . | . . . . . . . . . . . . Time . | . . . . . . . . . . . . Total Part Build Rating . | . . . . . . . . . . . . Parts Repaired 3 | . . . . . 1 . . 2 . . . Time 92 | . . . . . 44 . . 48 . . . Parts Recycled . | . . . . . . . . . . . . Recycled Matter . | . . . . . . . . . . . . Retrieved Matter . | . . . . . . . . . . . . Retrieved Components . | . . . . . . . . . . . . Parts Scanalyzed 1 | . . . . . 1 . . . . . . Part Schematics Acquired 1 | . . . . . 1 . . . . . . Parts Damaged . | . . . . . . . . . . . . Bothacking | -11 -10 -10 -10 -9 -8 -7 -7 -6 -6 -6 -6 ------------ Run | Scr Mat Min Exi Min Mat Fac Sto Fac Ext Cet Arc Used RIF Installer . | . . . . . . . . . . . . Robots Hacked . | . . . . . . . . . . . . Non-combat . | . . . . . . . . . . . . Combat . | . . . . . . . . . . . . Robot Hacks Applied . | . . . . . . . . . . . . Relay Couplers Released . | . . . . . . . . . . . . Fabnet Peak Effective % . | . . . . . . . . . . . . Robots Rewired . | . . . . . . . . . . . . Allies Hacked . | . . . . . . . . . . . . Hacks Repelled . | . . . . . . . . . . . . Allies | -11 -10 -10 -10 -9 -8 -7 -7 -6 -6 -6 -6 -------- Run | Scr Mat Min Exi Min Mat Fac Sto Fac Ext Cet Arc Total Allies 17 | . . . . . . . 10 1 6 . . Largest Group 10 | . . . . . . . 10 1 6 3 . Highest-Rated Group 316 | . . . . . . . 173 10 316 206 . Highest-Rated Ally 159 | . . . . . . . 29 10 159 141 . Total Orders . | . . . . . . . . . . . . Ally Attacks 129 | . . . . . . . 35 . 65 29 . Total Damage 2642 | . . . . . . . 522 . 1481 639 . Kills 23 | . . . . . . . 4 . 9 10 . Allies Corrupted . | . . . . . . . . . . . . Allies Melted . | . . . . . . . . . . . . Intel | -11 -10 -10 -10 -9 -8 -7 -7 -6 -6 -6 -6 ------- Run | Scr Mat Min Exi Min Mat Fac Sto Fac Ext Cet Arc Robot Analysis Total . | . . . . . . . . . . . . Derelict Logs Recovered 2 | . . . . 2 . . . . . . . Drone Launches . | . . . . . . . . . . . . Drone Recoveries . | . . . . . . . . . . . . Exploration | -11 -10 -10 -10 -9 -8 -7 -7 -6 -6 -6 -6 ------------- Run | Scr Mat Min Exi Min Mat Fac Sto Fac Ext Cet Arc Turns Passed 3999 | 59 475 20 255 375 553 158 376 889 485 344 10 Spaces Moved 2664 | 48 301 17 211 303 373 128 258 436 365 204 20 Core 76 | 4 . . . . . . . . . 52 20 Treads 118 | . . . . . . . . . 1 117 . Legs 2367 | . 297 17 211 303 373 128 258 385 364 31 . Wheels 103 | 44 4 . . . . . . 51 . 4 . Hover . | . . . . . . . . . . . . Flight . | . . . . . . . . . . . . Fastest Speed 50 | 50 90 120 120 120 120 120 120 95 120 50 50 Average Speed 120 | 92 120 120 120 120 120 120 120 127 120 125 50 Slowest Speed 200 | 100 190 120 120 120 120 120 126 200 160 160 50 Overloaded Moves . | . . . . . . . . . . . . Propulsion Burnouts . | . . . . . . . . . . . . Robots Hopped . | . . . . . . . . . . . . Cave-ins Triggered . | . . . . . . . . . . . . Exploration Rate (%) 37 | 3 44 4 62 74 32 3 40 10 57 83 42 Regions Visited 11 Branch Regions 7 Pre-discovered Areas 1 | . . . 1 . . . . . . . . Known Exits Taken 9 | . 1 1 1 1 1 1 1 1 1 . . Unknown Exits Taken 2 | 1 . . . . . . . . . 1 . Scrap Searched 1 | . . . . 1 . . . . . . . Spaces Dug . | . . . . . . . . . . . . Terrain Destroyed 182 | . 53 . . 31 32 . . 42 1 23 . Melee . | . . . . . . . . . . . . Projectile 64 | . . . . 24 32 . . 5 . 3 . AOE 118 | . 53 . . 7 . . . 37 1 20 . Terrain Rammed 1 | . . . . . . . 1 . . . . Walls Destroyed . | . . . . . . . . . . . . Machines Disabled 1 | . . . . . . . 1 . . . . Actions | -11 -10 -10 -10 -9 -8 -7 -7 -6 -6 -6 -6 --------- Run | Scr Mat Min Exi Min Mat Fac Sto Fac Ext Cet Arc Total 3253 | 60 387 16 214 315 477 132 302 660 404 266 20 Wait 274 | . 24 . . 9 84 . 11 121 11 14 . Move 2653 | 47 300 16 210 302 372 127 257 435 364 203 20 Hop . | . . . . . . . . . . . . Pick Up 49 | 7 9 . . 1 4 2 6 7 9 4 . Fast Attach 43 | 5 9 . 1 . 4 . 4 8 8 4 . Attach 32 | 1 1 . . . 5 2 3 11 2 7 . Detach 10 | . 4 . 1 . 1 . 1 1 . 2 . Swap 15 | . 3 . . 1 3 1 1 3 3 . . Drop 44 | . 16 . 2 2 4 . 6 1 4 9 . Fire 126 | . 21 . . . . . 12 68 3 22 . Melee . | . . . . . . . . . . . . Ram 2 | . . . . . . . 1 . . 1 . Kick 5 | . . . . . . . . 5 . . . Crush . | . . . . . . . . . . . . Escape Stasis . | . . . . . . . . . . . . Rewire . | . . . . . . . . . . . . Trap . | . . . . . . . . . . . . Miscellaneous . | . . . . . . . . . . . . Route ------- -11/Scrapyard -10/Materials (discovered 2 exits: *Mat / *Min) -10/Mines -10/Exiles -9/Mines -8/Materials (discovered 2 exits: *Fac x2) -7/Factory -7/Storage -6/Factory (discovered 8 exits: Fac x4 / Low x2 / *Ext x2) -6/Extension (discovered 3 exits: *Fac x2 / *Cet) -6/Cetus (discovered 2 exits: *Fac / [*Arc]) -6/Archives History --------- Turn | Location | Event 7 | -11/Scrapyard | Discovered new exit (range 16) 60 | -11/Scrapyard | Entered Materials 223 | -10/Materials | Discovered new exit (range 15) 265 | -10/Materials | Identified exit to Materials 315 | -10/Materials | Build established: Mutant 491 | -10/Materials | Discovered new exit (range 15) 534 | -10/Materials | Identified exit to Mines 535 | -10/Materials | Entered Mines 550 | -10/Mines | Deemed a non-threat by the Exiles lab entrance 550 | -10/Mines | Discovered new exit (range 5) 553 | -10/Mines | Identified exit to Exiles 555 | -10/Mines | Entered Exiles 583 | -10/Exiles | Met 8R-AWN 605 | -10/Exiles | Met EX-HEX 639 | -10/Exiles | Met EX-BIN 654 | -10/Exiles | Aligned with FarCom system 655 | -10/Exiles | Given EX-Vault access code 683 | -10/Exiles | Opened EX-Vault 691 | -10/Exiles | Found AWS/Gauss 718 | -10/Exiles | Warned to stay clear of 0b10 Research branches 735 | -10/Exiles | Exiles lab attacked by MAIN.C 755 | -10/Exiles | Learned location of Zion (-6) 801 | -10/Exiles | Discovered new exit (range 10) 809 | -10/Exiles | Identified exit to Mines 810 | -10/Exiles | Left Exiles lab with AWS/Gauss 810 | -10/Exiles | Entered Mines 839 | -9/Mines | Learned location of 1 exit from Materials 853 | -9/Mines | Met a Derelict who couldn't figure out how to use a Trap Extractor 1156 | -9/Mines | Discovered new exit (range 4) 1160 | -9/Mines | Identified exit to Materials 1175 | -9/Mines | Met a Derelict shopkeep closing up shop 1176 | -9/Mines | Learned Materials security intel 1185 | -9/Mines | Entered Materials 1185 | -8/Materials | Evolved 4 slots: Propulsion x1, Utility x3 1186 | -8/Materials | Identified exit to Factory 1481 | -8/Materials | Discovered exit to Factory (range 6) 1588 | -8/Materials | Repaired Imp. Carbon-fiber Leg? 1738 | -8/Materials | Entered Factory 1738 | -7/Factory | Evolved 2 slots: Utility x2 1872 | -7/Factory | Discovered new exit (range 15) 1889 | -7/Factory | Identified exit to Storage 1896 | -7/Factory | Entered Storage 2044 | -7/Storage | Build established: Hacker-Mutant 2217 | -7/Storage | Discovered new exit (range 16) 2226 | -7/Storage | Assisted by bots powering up and referring to "LRC-V3" 2265 | -7/Storage | Lost 6 parts (1p2n2u1w) 2271 | -7/Storage | Identified exit to Factory 2272 | -7/Storage | Entered Factory 2272 | -6/Factory | Evolved 2 slots: Propulsion x1, Utility x1 2346 | -6/Factory | Identified exit to Lower Caves 2346 | -6/Factory | Identified exit to Extension 2417 | -6/Factory | Repaired Sml. Storage Unit 2685 | -6/Factory | Lost 3 parts (1p1u1w) 2826 | -6/Factory | Repaired Transmission Jammer 2955 | -6/Factory | Lost 5 parts (2n3u) 3009 | -6/Factory | Identified exit to Factory 3161 | -6/Factory | Entered Extension 3166 | -6/Extension | Lost 9 parts (1p4n2u2w) 3195 | -6/Extension | Rescued a captive Derelict 3216 | -6/Extension | Rescued a captive Derelict 3261 | -6/Extension | Rescued a captive Derelict 3267 | -6/Extension | Identified exit to Cetus 3303 | -6/Extension | Rescued A7 3355 | -6/Extension | Rescued a captive Derelict 3355 | -6/Extension | Rescued a captive Derelict 3399 | -6/Extension | Spotted B-75 Beast 3403 | -6/Extension | Spotted B-75 Beast 3432 | -6/Extension | Allies destroyed B-75 Beast 3444 | -6/Extension | Discovered exit to Factory (range 3) 3447 | -6/Extension | Allies destroyed B-75 Beast 3618 | -6/Extension | Discovered exit to Factory (range 16) 3646 | -6/Extension | Entered Cetus 3646 | -6/Cetus | Accompanied by 3 allies (A7) 3651 | -6/Cetus | Acquired a Cetus Manufacturing Module code from A7 3663 | -6/Cetus | Spotted Cetus Guard 3663 | -6/Cetus | Spotted Cetus Guard 3663 | -6/Cetus | Allies destroyed Cetus Guard 3665 | -6/Cetus | Spotted Cetus Guard 3669 | -6/Cetus | Spotted Cetus Guard 3674 | -6/Cetus | Allies destroyed Cetus Guard 3679 | -6/Cetus | Allies destroyed Cetus Guard 3681 | -6/Cetus | Allies destroyed Cetus Guard 3781 | -6/Cetus | Build established: Scavenger-Skirmisher 3787 | -6/Cetus | Cetus Manufacturing Module disabled 3806 | -6/Cetus | Extracted ID and sensor layout for unrecognized location from A7's data core 3851 | -6/Cetus | Core integrity fell below 50% 3939 | -6/Cetus | Discovered new exit (range 16) 3969 | -6/Cetus | Spotted Cetus Guard 3970 | -6/Cetus | Spotted Cetus Guard 3970 | -6/Cetus | Spotted Cetus Guard 3972 | -6/Cetus | Discovered exit to Factory (range 16) 3973 | -6/Cetus | Spotted Cetus Guard 3976 | -6/Cetus | Core integrity fell below 20% 3990 | -6/Cetus | Entered Archives 4000 | -6/Archives | Destroyed by Y-64 Sentinel with KE Penetrator Last Messages --------------- 03972_ EXIT=FOUND: FACTORY 03974_ System corrupted: Matter fused (-10). 03974_ Slug penetrates Wall. 03975_ Penetrated by Slug. 03976_ Slug penetrates Wall. 03980_ Penetrated by Slug. 03980_ Slug penetrates Wall. 03980_ Centrium Heavy Treads destroyed. 03980_ Penetrated by Slug. 03983_ Critical hit (Destroy). 03983_ Imp. Medium Treads destroyed. 03984_ Slammed into H-66 Slayer. 03984_ Destabilizing: System corrupted (+2). 03984_ Penetrated by Slug. 03986_ Slug penetrates Wall. LOCATION=UNKNOWN GOAL=ESCAPE 03990_ Receiving FarCom transmissions... 03999_ System corrupted: Component data lost. 04000_ Penetrated by Slug. Map ----- +----------------------------------------------------+ | | | | | | | | | | | ????????????????????????????????????????? | | ????????????????????????????????????????? | | ????????????????????????????????????????? | | ????????????????????????????????????????? | | ????????????????????????????????????????? | | ????????????????????????????????????????? | | ????????????????????????????????????????? | | ????????????????????????????????????????? | | ????????????????????????????????????????? | | ????????????????????????????????????????? | | ????????????????????????????????????????? | | ????????????????????????????????????????? | | ???????????????????????##???????????????? | | ???????????????????""""""#??????????????? | | ??????????????????"""V"""#??????????????? | | ??????????????????""" """#?? #??????????? | | ?????????????????#"" ""# ##?????????? | | ??############### o Y#?????????? | | ??# Y "?????????? | | ??# "?????????? | | ??# @ o "????????? | | ??#####/######### ????????? | | ??# #????o "????????? | | ??# #????? "?????????? | | ??# """"""" ? o "?????????? | | ??#"""""""""#"V ??????????? | | ??#""""""""""""" ??????????? | | ??#"""""""""#"""" ? ??????????? | | ??#"""""""""#"""???? ???????????? | | ??????#######????Y??? Y??????????? | | ?????????????????????#"" "????????????? | | ??????????????????????""" ""????????????? | | ?????????????????????????V??????????????? | | ????????????????????????????????????????? | | ????????????????????????????????????????? | | ????????????????????????????????????????? | | ????????????????????????????????????????? | | ????????????????????????????????????????? | | ????????????????????????????????????????? | | ????????????????????????????????????????? | | ????????????????????????????????????????? | | ????????????????????????????????????????? | | ????????????????????????????????????????? | | ????????????????????????????????????????? | | ????????????????????????????????????????? | +----------------------------------------------------+ Best States ------------- Heat Dissipation 78 Energy Generation 18 Energy Capacity 300 Matter Stores 300 Matter Capacity 300 Sight Range 16 Terrain Scan Range 14 Terrain Scan Density 10 Jamming Range 12 Armor Coverage 675 Core Shielding 30 Weapon Shielding 33 Evasion (%) 55 Targeting Accuracy 5 Recoil Reduction 2 Offensive Hacking 20 Item Schematics ----------------- Imp. Carbon-fiber Leg | -8/Materials | Scanalyzed Robot Schematics ------------------ None Fabricated ------------ Nothing Alien Tech Used ----------------- None Achievements -------------- Overkill Prison Break Challenges ------------ None Game ------ Seed VortexDisruptionPick Manual? 0 Play Time 01:21:35 Cumulative 63.9 hours Start 2022.05.30 @ 09:16:38 End 2022.05.30 @ 10:46:54 Sessions 1 Manual Loads 0 Difficulty Rogue Special Mode None Game No. 45 Rogue 26 Adventurer 16 Explorer 3 Win Type - Total 2 Types 2/0/0/0/0/0/0/0/0 Lore% 34 Gallery% 45 Achievement% 37 Wizard Run 0 Options --------- ASCII 1 Keyboard 1 Movement Numpad Keybinds 0 Fullscreen 1 Font 18/TerminusBold Map View 76x50 Tactical HUD 1 Map Filters NONE Filters NONE Steam X RUN: f2499e89-8a16-4f34-bfe3-670723b5d20f